[Event "Titled Tuesday Blitz January 17 Early 2023"]
[White "Hambleton, Aman"]
[Black "Sadhwani, Raunak"]
[WhiteFideId "2606577"]
[BlackFideId "35093487"]
[WhiteElo "2420"]
[BlackElo "2627"]
[Result "0-1"]
[Round "07"]
[TimeControl "180+2"]
[Date "2023.01.17"]
[WhiteClock "0:00:04"]
[BlackClock "0:00:49"]

1. d4 {[%clk 0:03:00]}  Nf6 {[%clk 0:02:59]} 2. Bf4 {[%clk 0:02:58]}  b6 {[%clk 0:02:54]} 3. e3 {[%clk 0:02:57]}  Bb7 {[%clk 0:02:55]} 4. h3 {[%clk 0:02:56]}  d6 {[%clk 0:02:55]} 5. Nf3 {[%clk 0:02:56]}  Nbd7 {[%clk 0:02:55]} 6. Be2 {[%clk 0:02:56]}  g6 {[%clk 0:02:55]} 7. c4 {[%clk 0:02:56]}  Bg7 {[%clk 0:02:56]} 8. Nc3 {[%clk 0:02:56]}  O-O {[%clk 0:02:57]} 9. O-O {[%clk 0:02:56]}  Re8 {[%clk 0:02:56]} 10. Bh2 {[%clk 0:02:56]}  e5 {[%clk 0:02:57]} 11. a4 {[%clk 0:02:56]}  exd4 {[%clk 0:02:49]} 12. Nxd4 {[%clk 0:02:35]}  Ne4 {[%clk 0:02:48]} 13. Nxe4 {[%clk 0:02:31]}  Bxe4 {[%clk 0:02:49]} 14. Bf3 {[%clk 0:02:24]}  a5 {[%clk 0:02:46]} 15. Bxe4 {[%clk 0:02:21]}  Rxe4 {[%clk 0:02:47]} 16. Qc2 {[%clk 0:02:15]}  Re8 {[%clk 0:02:39]} 17. Rad1 {[%clk 0:02:13]}  Nc5 {[%clk 0:02:36]} 18. b3 {[%clk 0:01:58]}  Qd7 {[%clk 0:02:35]} 19. Ne2 {[%clk 0:01:47]}  h5 {[%clk 0:02:34]} 20. Nf4 {[%clk 0:01:44]}  Ne4 {[%clk 0:02:17]} 21. Nd5 {[%clk 0:01:37]}  Nf6 {[%clk 0:02:16]} 22. Bf4 {[%clk 0:01:15]}  Re6 {[%clk 0:02:06]} 23. Nxf6+ {[%clk 0:01:07]}  Bxf6 {[%clk 0:02:07]} 24. Rd5 {[%clk 0:01:08]}  Rae8 {[%clk 0:02:07]} 25. Rfd1 {[%clk 0:01:02]}  Qe7 {[%clk 0:02:03]} 26. Qe2 {[%clk 0:00:28]}  Be5 {[%clk 0:01:55]} 27. Bxe5 {[%clk 0:00:21]}  Rxe5 {[%clk 0:01:56]} 28. Qd3 {[%clk 0:00:13]}  Re6 {[%clk 0:01:53]} 29. Qd4 {[%clk 0:00:11]}  Re4 {[%clk 0:01:46]} 30. Qd3 {[%clk 0:00:11]}  Qf6 {[%clk 0:01:46]} 31. Rd4 {[%clk 0:00:08]}  R4e5 {[%clk 0:01:44]} 32. Rf4 {[%clk 0:00:06]}  Qe6 {[%clk 0:01:39]} 33. h4 {[%clk 0:00:06]}  f5 {[%clk 0:01:28]} 34. Rd4 {[%clk 0:00:04]}  Qf6 {[%clk 0:01:27]} 35. g3 {[%clk 0:00:05]}  Kg7 {[%clk 0:01:27]} 36. Kg2 {[%clk 0:00:05]}  R8e7 {[%clk 0:01:27]} 37. Qe2 {[%clk 0:00:04]}  Kh6 {[%clk 0:01:22]} 38. Qf3 {[%clk 0:00:04]}  Re4 {[%clk 0:01:22]} 39. R1d2 {[%clk 0:00:03]}  Kg7 {[%clk 0:01:00]} 40. Rd1 {[%clk 0:00:03]}  Rg4 {[%clk 0:01:01]} 41. R1d2 {[%clk 0:00:03]}  Qxh4 {[%clk 0:00:57]} 42. Rf4 {[%clk 0:00:02]}  Qf6 {[%clk 0:00:54]} 43. Qd5 {[%clk 0:00:01]}  Rxf4 {[%clk 0:00:49]} 44. exf4 {[%clk 0:00:02]}  Qe6 {[%clk 0:00:47]} 45. Qc6 {[%clk 0:00:01]}  Qe4+ {[%clk 0:00:47]} 46. Qxe4 {[%clk 0:00:02]}  Rxe4 {[%clk 0:00:48]} 47. Kf3 {[%clk 0:00:02]}  Kf6 {[%clk 0:00:47]} 48. Rd1 {[%clk 0:00:02]}  Ke6 {[%clk 0:00:47]} 49. Rc1 {[%clk 0:00:01]}  Kd7 {[%clk 0:00:47]} 50. Rd1 {[%clk 0:00:01]}  Kc6 {[%clk 0:00:47]} 51. Rd5 {[%clk 0:00:01]}  Re1 {[%clk 0:00:48]} 52. Rd3 {[%clk 0:00:01]}  Kc5 {[%clk 0:00:48]} 53. Kg2 {[%clk 0:00:02]}  Kb4 {[%clk 0:00:47]} 54. Kh3 {[%clk 0:00:02]}  Rh1+ {[%clk 0:00:47]} 55. Kg2 {[%clk 0:00:02]}  Rb1 {[%clk 0:00:48]} 56. Re3 {[%clk 0:00:02]}  Rxb3 {[%clk 0:00:48]} 57. Re6 {[%clk 0:00:03]}  Kxa4 {[%clk 0:00:48]} 58. Rxg6 {[%clk 0:00:04]}  Kb4 {[%clk 0:00:49]} 0-1


[Site "https://www.chess.com"]

[Event "Titled Tuesday Blitz January 17 Early 2023"]
[White "Tan, Zhongyi"]
[Black "Narayanan.S.L"]
[WhiteFideId "8603642"]
[BlackFideId "5058422"]
[WhiteElo "2517"]
[BlackElo "2660"]
[Result "0-1"]
[Round "07"]
[TimeControl "180+2"]
[Date "2023.01.17"]
[WhiteClock "0:00:03"]
[BlackClock "0:01:43"]

1. d4 {[%clk 0:02:54]}  d5 {[%clk 0:02:59]} 2. Bf4 {[%clk 0:02:53]}  g6 {[%clk 0:02:56]} 3. e3 {[%clk 0:02:52]}  Bg7 {[%clk 0:02:55]} 4. Nd2 {[%clk 0:02:49]}  Nf6 {[%clk 0:02:55]} 5. c3 {[%clk 0:02:47]}  O-O {[%clk 0:02:55]} 6. Bd3 {[%clk 0:02:46]}  c5 {[%clk 0:02:55]} 7. h4 {[%clk 0:02:46]}  Nc6 {[%clk 0:02:55]} 8. h5 {[%clk 0:02:40]}  cxd4 {[%clk 0:02:52]} 9. cxd4 {[%clk 0:02:36]}  Ng4 {[%clk 0:02:48]} 10. Ngf3 {[%clk 0:02:24]}  e5 {[%clk 0:02:47]} 11. dxe5 {[%clk 0:02:20]}  Ngxe5 {[%clk 0:02:48]} 12. Nxe5 {[%clk 0:02:19]}  Nxe5 {[%clk 0:02:49]} 13. Be2 {[%clk 0:02:11]}  d4 {[%clk 0:02:48]} 14. Bxe5 {[%clk 0:01:57]}  Bxe5 {[%clk 0:02:43]} 15. Nf3 {[%clk 0:01:56]}  Qa5+ {[%clk 0:02:42]} 16. b4 {[%clk 0:01:34]}  Qxb4+ {[%clk 0:02:41]} 17. Kf1 {[%clk 0:01:34]}  Bf6 {[%clk 0:02:37]} 18. hxg6 {[%clk 0:01:33]}  hxg6 {[%clk 0:02:37]} 19. exd4 {[%clk 0:01:30]}  Bg4 {[%clk 0:02:36]} 20. Rb1 {[%clk 0:01:28]}  Qd6 {[%clk 0:02:35]} 21. Rxb7 {[%clk 0:01:27]}  Rab8 {[%clk 0:02:33]} 22. Rb3 {[%clk 0:01:19]}  Rxb3 {[%clk 0:02:32]} 23. axb3 {[%clk 0:01:19]}  Rd8 {[%clk 0:02:27]} 24. Qd2 {[%clk 0:01:19]}  Bxf3 {[%clk 0:02:24]} 25. gxf3 {[%clk 0:01:17]}  Bxd4 {[%clk 0:02:24]} 26. Qh6 {[%clk 0:01:10]}  Bg7 {[%clk 0:02:23]} 27. Qg5 {[%clk 0:01:03]}  Qd2 {[%clk 0:02:16]} 28. Qxd2 {[%clk 0:00:58]}  Rxd2 {[%clk 0:02:16]} 29. Bc4 {[%clk 0:00:58]}  Bd4 {[%clk 0:02:15]} 30. Rh2 {[%clk 0:00:58]}  Kg7 {[%clk 0:02:15]} 31. Kg2 {[%clk 0:00:47]}  f5 {[%clk 0:02:06]} 32. Kg3 {[%clk 0:00:42]}  Be5+ {[%clk 0:02:03]} 33. f4 {[%clk 0:00:41]}  Bd6 {[%clk 0:02:03]} 34. Kf3 {[%clk 0:00:28]}  Rd4 {[%clk 0:02:03]} 35. Rg2 {[%clk 0:00:24]}  Rxf4+ {[%clk 0:02:03]} 36. Ke2 {[%clk 0:00:23]}  Re4+ {[%clk 0:02:02]} 37. Kd3 {[%clk 0:00:23]}  Kf6 {[%clk 0:02:03]} 38. f3 {[%clk 0:00:20]}  Rf4 {[%clk 0:02:02]} 39. Bd5 {[%clk 0:00:19]}  Be5 {[%clk 0:02:03]} 40. Kc2 {[%clk 0:00:17]}  Rd4 {[%clk 0:02:02]} 41. Rd2 {[%clk 0:00:17]}  Rh4 {[%clk 0:02:01]} 42. Ba8 {[%clk 0:00:09]}  Bd4 {[%clk 0:02:01]} 43. Re2 {[%clk 0:00:06]}  g5 {[%clk 0:02:01]} 44. Re8 {[%clk 0:00:06]}  Bc5 {[%clk 0:01:54]} 45. Rg8 {[%clk 0:00:05]}  Rd4 {[%clk 0:01:51]} 46. Kc3 {[%clk 0:00:05]}  Rd7 {[%clk 0:01:49]} 47. Kc4 {[%clk 0:00:04]}  Bb6 {[%clk 0:01:49]} 48. b4 {[%clk 0:00:04]}  Be3 {[%clk 0:01:45]} 49. b5 {[%clk 0:00:04]}  Ke5 {[%clk 0:01:45]} 50. Re8+ {[%clk 0:00:03]}  Kf4 {[%clk 0:01:46]} 51. Rf8 {[%clk 0:00:03]}  Rd4+ {[%clk 0:01:46]} 52. Kb3 {[%clk 0:00:03]}  Rd3+ {[%clk 0:01:46]} 53. Kc4 {[%clk 0:00:03]}  Rd4+ {[%clk 0:01:43]} 54. Kb3 {[%clk 0:00:03]}  Bf2 {[%clk 0:01:39]} 55. Be4 {[%clk 0:00:03]}  Rxe4 {[%clk 0:01:39]} 56. fxe4 {[%clk 0:00:03]}  Kxe4 {[%clk 0:01:40]} 57. Kc4 {[%clk 0:00:03]}  g4 {[%clk 0:01:41]} 58. Re8+ {[%clk 0:00:04]}  Kf3 {[%clk 0:01:41]} 59. Kd3 {[%clk 0:00:04]}  g3 {[%clk 0:01:41]} 60. Rf8 {[%clk 0:00:04]}  f4 {[%clk 0:01:42]} 61. Rg8 {[%clk 0:00:04]}  g2 {[%clk 0:01:42]} 62. Rxg2 {[%clk 0:00:03]}  Kxg2 {[%clk 0:01:43]} 0-1


[Site "https://www.chess.com"]

[Event "Titled Tuesday Blitz January 17 Early 2023"]
[White "Tristan, Leonardo"]
[Black "Narayanan, Srinath"]
[WhiteFideId "113816"]
[BlackFideId "5018420"]
[WhiteElo "2545"]
[BlackElo "2559"]
[Result "0-1"]
[Round "07"]
[TimeControl "180+2"]
[Date "2023.01.17"]
[WhiteClock "0:00:01"]
[BlackClock "0:00:05"]

1. d4 {[%clk 0:03:00]}  d5 {[%clk 0:02:59]} 2. Nf3 {[%clk 0:03:01]}  Nf6 {[%clk 0:02:59]} 3. Bf4 {[%clk 0:03:01]}  c5 {[%clk 0:02:58]} 4. e3 {[%clk 0:03:01]}  Nc6 {[%clk 0:02:59]} 5. Nbd2 {[%clk 0:03:01]}  Bg4 {[%clk 0:02:59]} 6. c3 {[%clk 0:03:01]}  e6 {[%clk 0:02:58]} 7. Qb3 {[%clk 0:02:59]}  Qc8 {[%clk 0:02:57]} 8. h3 {[%clk 0:02:59]}  Bh5 {[%clk 0:02:57]} 9. Nh4 {[%clk 0:03:00]}  cxd4 {[%clk 0:02:50]} 10. cxd4 {[%clk 0:02:56]}  Qd7 {[%clk 0:02:50]} 11. g4 {[%clk 0:02:54]}  Bg6 {[%clk 0:02:50]} 12. Nxg6 {[%clk 0:02:54]}  hxg6 {[%clk 0:02:51]} 13. Bg2 {[%clk 0:02:55]}  Bd6 {[%clk 0:02:48]} 14. Bxd6 {[%clk 0:02:30]}  Qxd6 {[%clk 0:02:49]} 15. Qxb7 {[%clk 0:02:29]}  Rb8 {[%clk 0:02:49]} 16. Nc4 {[%clk 0:02:29]}  Qb4+ {[%clk 0:01:54]} 17. Qxb4 {[%clk 0:02:29]}  Nxb4 {[%clk 0:01:55]} 18. Na3 {[%clk 0:02:11]}  Nd3+ {[%clk 0:01:55]} 19. Ke2 {[%clk 0:02:06]}  Nxb2 {[%clk 0:01:54]} 20. Rhc1 {[%clk 0:02:01]}  Kd7 {[%clk 0:01:54]} 21. Rc5 {[%clk 0:01:46]}  Rb7 {[%clk 0:01:38]} 22. Rac1 {[%clk 0:01:23]}  Rhb8 {[%clk 0:01:36]} 23. g5 {[%clk 0:01:20]}  Ne8 {[%clk 0:01:35]} 24. e4 {[%clk 0:01:20]}  dxe4 {[%clk 0:01:15]} 25. Bxe4 {[%clk 0:01:20]}  Rb4 {[%clk 0:01:16]} 26. Ra5 {[%clk 0:01:02]}  Rxd4 {[%clk 0:00:58]} 27. Rxa7+ {[%clk 0:01:02]}  Kd8 {[%clk 0:00:59]} 28. Bc6 {[%clk 0:00:55]}  Nd3 {[%clk 0:00:57]} 29. Rc4 {[%clk 0:00:38]}  Rxc4 {[%clk 0:00:19]} 30. Nxc4 {[%clk 0:00:38]}  Nb4 {[%clk 0:00:20]} 31. Bxe8 {[%clk 0:00:29]}  Kxe8 {[%clk 0:00:21]} 32. Nd6+ {[%clk 0:00:30]}  Kf8 {[%clk 0:00:21]} 33. Rxf7+ {[%clk 0:00:30]}  Kg8 {[%clk 0:00:22]} 34. Ra7 {[%clk 0:00:29]}  Nd5 {[%clk 0:00:23]} 35. a4 {[%clk 0:00:24]}  Rb3 {[%clk 0:00:21]} 36. h4 {[%clk 0:00:17]}  Nf4+ {[%clk 0:00:21]} 37. Ke1 {[%clk 0:00:12]}  Rd3 {[%clk 0:00:21]} 38. Ne8 {[%clk 0:00:09]}  Ng2+ {[%clk 0:00:21]} 39. Kf1 {[%clk 0:00:07]}  Nxh4 {[%clk 0:00:19]} 40. Nxg7 {[%clk 0:00:07]}  e5 {[%clk 0:00:06]} 41. Ne8 {[%clk 0:00:07]}  e4 {[%clk 0:00:05]} 42. Nf6+ {[%clk 0:00:07]}  Kf8 {[%clk 0:00:06]} 43. Nxe4 {[%clk 0:00:08]}  Rd4 {[%clk 0:00:05]} 44. Nf6 {[%clk 0:00:08]}  Nf3 {[%clk 0:00:05]} 45. Nh7+ {[%clk 0:00:06]}  Kg8 {[%clk 0:00:04]} 46. a5 {[%clk 0:00:07]}  Ra4 {[%clk 0:00:04]} 47. a6 {[%clk 0:00:08]}  Ra2 {[%clk 0:00:05]} 48. Nf6+ {[%clk 0:00:06]}  Kf8 {[%clk 0:00:05]} 49. Nd7+ {[%clk 0:00:05]}  Kg8 {[%clk 0:00:04]} 50. Nc5 {[%clk 0:00:06]}  Nxg5 {[%clk 0:00:04]} 51. Rb7 {[%clk 0:00:05]}  Ra1+ {[%clk 0:00:03]} 52. Kg2 {[%clk 0:00:05]}  Ne6 {[%clk 0:00:01]} 53. Nxe6 {[%clk 0:00:03]}  Rxa6 {[%clk 0:00:02]} 54. Nf4 {[%clk 0:00:04]}  g5 {[%clk 0:00:02]} 55. Nh3 {[%clk 0:00:04]}  Rg6 {[%clk 0:00:03]} 56. Kg3 {[%clk 0:00:04]}  Kf8 {[%clk 0:00:02]} 57. Rb5 {[%clk 0:00:04]}  g4 {[%clk 0:00:02]} 58. Nf4 {[%clk 0:00:03]}  Ra6 {[%clk 0:00:03]} 59. Rg5 {[%clk 0:00:03]}  Kf7 {[%clk 0:00:04]} 60. Rxg4 {[%clk 0:00:03]}  Ra2 {[%clk 0:00:04]} 61. f3 {[%clk 0:00:04]}  Kf6 {[%clk 0:00:04]} 62. Rh4 {[%clk 0:00:05]}  Kf5 {[%clk 0:00:05]} 63. Rh5+ {[%clk 0:00:05]}  Kf6 {[%clk 0:00:05]} 64. Rc5 {[%clk 0:00:01]}  Ra3 {[%clk 0:00:05]} 0-1


[Site "https://www.chess.com"]

[Event "Titled Tuesday Blitz January 17 Early 2023"]
[White "Timofeev, Artyom"]
[Black "Boyer, Mahel"]
[WhiteFideId "4140419"]
[BlackFideId "45102422"]
[WhiteElo "2567"]
[BlackElo "2489"]
[Result "1-0"]
[Round "07"]
[TimeControl "180+2"]
[Date "2023.01.17"]
[WhiteClock "0:00:13"]
[BlackClock "0:00:01"]

1. e4 {[%clk 0:03:00]}  Nc6 {[%clk 0:01:56]} 2. Nf3 {[%clk 0:02:59]}  d5 {[%clk 0:01:57]} 3. exd5 {[%clk 0:02:56]}  Qxd5 {[%clk 0:01:58]} 4. Be2 {[%clk 0:02:55]}  Bg4 {[%clk 0:01:57]} 5. h3 {[%clk 0:02:54]}  Bh5 {[%clk 0:01:56]} 6. Nc3 {[%clk 0:02:52]}  Qd7 {[%clk 0:01:56]} 7. O-O {[%clk 0:02:43]}  O-O-O {[%clk 0:01:55]} 8. d3 {[%clk 0:02:44]}  e5 {[%clk 0:01:48]} 9. Nxe5 {[%clk 0:02:33]}  Bxe2 {[%clk 0:01:49]} 10. Qxe2 {[%clk 0:02:33]}  Nxe5 {[%clk 0:01:50]} 11. Qxe5 {[%clk 0:02:33]}  Ne7 {[%clk 0:01:49]} 12. Qb5 {[%clk 0:02:22]}  Nc6 {[%clk 0:01:50]} 13. Be3 {[%clk 0:02:21]}  Bd6 {[%clk 0:01:44]} 14. Ne4 {[%clk 0:02:17]}  Rhe8 {[%clk 0:01:42]} 15. Nxd6+ {[%clk 0:02:14]}  Qxd6 {[%clk 0:01:43]} 16. Qf5+ {[%clk 0:02:13]}  Qe6 {[%clk 0:01:35]} 17. Qxe6+ {[%clk 0:02:13]}  Rxe6 {[%clk 0:01:36]} 18. a3 {[%clk 0:02:11]}  Nd4 {[%clk 0:01:32]} 19. Bxd4 {[%clk 0:02:11]}  Rxd4 {[%clk 0:01:33]} 20. Rfe1 {[%clk 0:02:12]}  Rdd6 {[%clk 0:01:28]} 21. Rxe6 {[%clk 0:02:11]}  Rxe6 {[%clk 0:01:29]} 22. Kf1 {[%clk 0:02:11]}  Kd7 {[%clk 0:01:29]} 23. Re1 {[%clk 0:02:10]}  Rb6 {[%clk 0:01:26]} 24. b3 {[%clk 0:02:10]}  Rc6 {[%clk 0:01:22]} 25. Re2 {[%clk 0:02:09]}  a5 {[%clk 0:01:21]} 26. Ke1 {[%clk 0:02:09]}  a4 {[%clk 0:01:20]} 27. bxa4 {[%clk 0:02:05]}  Rc3 {[%clk 0:01:20]} 28. Kd2 {[%clk 0:02:05]}  Rxa3 {[%clk 0:01:20]} 29. Re4 {[%clk 0:02:06]}  f5 {[%clk 0:01:18]} 30. Rf4 {[%clk 0:02:00]}  Ke6 {[%clk 0:01:17]} 31. Rc4 {[%clk 0:01:57]}  Kd6 {[%clk 0:01:15]} 32. g4 {[%clk 0:01:53]}  fxg4 {[%clk 0:01:14]} 33. hxg4 {[%clk 0:01:54]}  Ra1 {[%clk 0:01:12]} 34. Ke3 {[%clk 0:01:49]}  g5 {[%clk 0:01:07]} 35. Ke4 {[%clk 0:01:42]}  Rf1 {[%clk 0:01:06]} 36. f3 {[%clk 0:01:41]}  h6 {[%clk 0:01:06]} 37. a5 {[%clk 0:01:34]}  Ra1 {[%clk 0:01:05]} 38. Kf5 {[%clk 0:01:33]}  Rxa5+ {[%clk 0:01:05]} 39. Kg6 {[%clk 0:01:34]}  b5 {[%clk 0:01:03]} 40. Rd4+ {[%clk 0:01:25]}  Kc5 {[%clk 0:01:02]} 41. Re4 {[%clk 0:01:23]}  Ra2 {[%clk 0:01:00]} 42. Re2 {[%clk 0:01:20]}  b4 {[%clk 0:00:53]} 43. Kxh6 {[%clk 0:00:37]}  b3 {[%clk 0:00:49]} 44. Re1 {[%clk 0:00:37]}  bxc2 {[%clk 0:00:15]} 45. Kxg5 {[%clk 0:00:36]}  Kd4 {[%clk 0:00:16]} 46. f4 {[%clk 0:00:36]}  Rb2 {[%clk 0:00:12]} 47. Rc1 {[%clk 0:00:34]}  Kxd3 {[%clk 0:00:12]} 48. f5 {[%clk 0:00:34]}  Kd2 {[%clk 0:00:10]} 49. Rh1 {[%clk 0:00:30]}  c1=Q {[%clk 0:00:10]} 50. Rxc1 {[%clk 0:00:29]}  Kxc1 {[%clk 0:00:11]} 51. Kf6 {[%clk 0:00:24]}  Rb6+ {[%clk 0:00:07]} 52. Kf7 {[%clk 0:00:24]}  Rb5 {[%clk 0:00:06]} 53. Kg6 {[%clk 0:00:18]}  c5 {[%clk 0:00:06]} 54. f6 {[%clk 0:00:19]}  c4 {[%clk 0:00:07]} 55. f7 {[%clk 0:00:19]}  c3 {[%clk 0:00:08]} 56. f8=Q {[%clk 0:00:19]}  Rb6+ {[%clk 0:00:05]} 57. Kh5 {[%clk 0:00:17]}  c2 {[%clk 0:00:05]} 58. Qf4+ {[%clk 0:00:13]}  Kb1 {[%clk 0:00:03]} 59. Qe4 {[%clk 0:00:14]}  Rb5+ {[%clk 0:00:01]} 60. g5 {[%clk 0:00:14]}  Rc5 {[%clk 0:00:01]} 61. Qb4+ {[%clk 0:00:13]} 1-0


[Site "https://www.chess.com"]

[Event "Titled Tuesday Blitz January 17 Early 2023"]
[White "Mitrabha, Guha"]
[Black "Demin, Vladimir"]
[WhiteFideId "5057000"]
[BlackFideId "4167457"]
[WhiteElo "2507"]
[BlackElo "2430"]
[Result "1-0"]
[Round "07"]
[TimeControl "180+2"]
[Date "2023.01.17"]
[WhiteClock "0:00:12"]
[BlackClock "0:00:11"]

1. c4 {[%clk 0:02:57]}  e6 {[%clk 0:02:59]} 2. Nc3 {[%clk 0:02:54]}  d5 {[%clk 0:02:58]} 3. d4 {[%clk 0:02:54]}  Nf6 {[%clk 0:02:57]} 4. Bg5 {[%clk 0:02:54]}  Be7 {[%clk 0:02:54]} 5. cxd5 {[%clk 0:02:54]}  exd5 {[%clk 0:02:54]} 6. e3 {[%clk 0:02:54]}  O-O {[%clk 0:02:55]} 7. Bd3 {[%clk 0:02:53]}  c6 {[%clk 0:02:54]} 8. Qc2 {[%clk 0:02:53]}  Nbd7 {[%clk 0:02:54]} 9. Nf3 {[%clk 0:02:53]}  h6 {[%clk 0:02:53]} 10. Bh4 {[%clk 0:02:53]}  Re8 {[%clk 0:02:51]} 11. O-O {[%clk 0:02:52]}  Ne4 {[%clk 0:02:50]} 12. Bxe4 {[%clk 0:02:51]}  Bxh4 {[%clk 0:02:44]} 13. Bh7+ {[%clk 0:02:51]}  Kh8 {[%clk 0:02:44]} 14. Bf5 {[%clk 0:02:52]}  Be7 {[%clk 0:02:41]} 15. Rab1 {[%clk 0:02:51]}  a5 {[%clk 0:02:37]} 16. a3 {[%clk 0:02:50]}  Bd6 {[%clk 0:02:33]} 17. b4 {[%clk 0:02:46]}  axb4 {[%clk 0:02:32]} 18. axb4 {[%clk 0:02:47]}  b5 {[%clk 0:02:29]} 19. e4 {[%clk 0:02:47]}  Nb6 {[%clk 0:02:22]} 20. exd5 {[%clk 0:02:45]}  Nxd5 {[%clk 0:02:18]} 21. Nxd5 {[%clk 0:02:39]}  cxd5 {[%clk 0:02:19]} 22. g3 {[%clk 0:02:02]}  Qf6 {[%clk 0:02:04]} 23. Bxc8 {[%clk 0:01:35]}  Raxc8 {[%clk 0:02:03]} 24. Qd3 {[%clk 0:01:35]}  Rc4 {[%clk 0:02:02]} 25. Kg2 {[%clk 0:01:34]}  Rec8 {[%clk 0:01:58]} 26. Rb3 {[%clk 0:01:30]}  Bxb4 {[%clk 0:01:46]} 27. Rfb1 {[%clk 0:01:18]}  Bc3 {[%clk 0:01:32]} 28. Rxb5 {[%clk 0:01:12]}  Bxd4 {[%clk 0:01:32]} 29. Rxd5 {[%clk 0:01:09]}  Bxf2 {[%clk 0:01:10]} 30. Kxf2 {[%clk 0:01:01]}  Rc2+ {[%clk 0:01:10]} 31. Kg1 {[%clk 0:00:40]}  R2c3 {[%clk 0:01:06]} 32. Qf5 {[%clk 0:00:38]}  Qa6 {[%clk 0:00:29]} 33. Rbd1 {[%clk 0:00:17]}  Qb6+ {[%clk 0:00:18]} 34. Kg2 {[%clk 0:00:15]}  Rc2+ {[%clk 0:00:18]} 35. Kh3 {[%clk 0:00:12]}  Rf8 {[%clk 0:00:11]} 36. Qxc2 {[%clk 0:00:12]} 1-0


[Site "https://www.chess.com"]

[Event "Titled Tuesday Blitz January 17 Early 2023"]
[White "Movahed, Sina"]
[Black "Subelj, Jan"]
[WhiteFideId "42520835"]
[BlackFideId "14618583"]
[WhiteElo "2340"]
[BlackElo "2513"]
[Result "1-0"]
[Round "07"]
[TimeControl "180+2"]
[Date "2023.01.17"]
[WhiteClock "0:00:44"]
[BlackClock "0:00:03"]

1. e4 {[%clk 0:03:00]}  Nc6 {[%clk 0:02:59]} 2. d4 {[%clk 0:03:00]}  d5 {[%clk 0:02:58]} 3. e5 {[%clk 0:02:59]}  Bf5 {[%clk 0:02:57]} 4. c3 {[%clk 0:02:57]}  e6 {[%clk 0:02:55]} 5. f4 {[%clk 0:02:56]}  f6 {[%clk 0:02:47]} 6. Nf3 {[%clk 0:02:55]}  h5 {[%clk 0:02:20]} 7. Bd3 {[%clk 0:02:35]}  Nh6 {[%clk 0:02:15]} 8. O-O {[%clk 0:02:22]}  Be7 {[%clk 0:02:05]} 9. Nh4 {[%clk 0:02:20]}  Bxd3 {[%clk 0:02:00]} 10. Qxd3 {[%clk 0:02:21]}  fxe5 {[%clk 0:01:56]} 11. Ng6 {[%clk 0:02:14]}  e4 {[%clk 0:01:55]} 12. Qh3 {[%clk 0:02:14]}  Kd7 {[%clk 0:01:33]} 13. f5 {[%clk 0:02:13]}  Re8 {[%clk 0:01:13]} 14. fxe6+ {[%clk 0:02:06]}  Kc8 {[%clk 0:01:12]} 15. Qxh5 {[%clk 0:02:04]}  b6 {[%clk 0:00:58]} 16. Nf4 {[%clk 0:01:59]}  Bg5 {[%clk 0:00:43]} 17. e7 {[%clk 0:01:36]}  Bxe7 {[%clk 0:00:38]} 18. Ne6 {[%clk 0:01:32]}  Qd7 {[%clk 0:00:21]} 19. Nxg7 {[%clk 0:01:32]}  Rg8 {[%clk 0:00:19]} 20. Bxh6 {[%clk 0:01:31]}  Bf8 {[%clk 0:00:17]} 21. Nf5 {[%clk 0:01:28]}  Bxh6 {[%clk 0:00:16]} 22. Nxh6 {[%clk 0:01:29]}  Rh8 {[%clk 0:00:16]} 23. Qg4 {[%clk 0:01:20]}  Rxh6 {[%clk 0:00:14]} 24. Rf8+ {[%clk 0:01:20]}  Nd8 {[%clk 0:00:14]} 25. Rxd8+ {[%clk 0:01:20]}  Kxd8 {[%clk 0:00:14]} 26. Qg5+ {[%clk 0:01:21]}  Kc8 {[%clk 0:00:14]} 27. Qxh6 {[%clk 0:01:21]}  Kb7 {[%clk 0:00:15]} 28. Nd2 {[%clk 0:01:21]}  Rg8 {[%clk 0:00:15]} 29. Qe3 {[%clk 0:01:18]}  Qg4 {[%clk 0:00:14]} 30. g3 {[%clk 0:01:18]}  a5 {[%clk 0:00:11]} 31. Rf1 {[%clk 0:01:18]}  a4 {[%clk 0:00:11]} 32. c4 {[%clk 0:01:14]}  Rh8 {[%clk 0:00:07]} 33. cxd5 {[%clk 0:01:11]}  Qh5 {[%clk 0:00:07]} 34. Rf2 {[%clk 0:01:11]}  Qd1+ {[%clk 0:00:07]} 35. Kg2 {[%clk 0:01:11]}  Qh5 {[%clk 0:00:07]} 36. h4 {[%clk 0:01:08]}  Re8 {[%clk 0:00:06]} 37. d6 {[%clk 0:01:07]}  cxd6 {[%clk 0:00:05]} 38. Nxe4 {[%clk 0:01:06]}  Qd5 {[%clk 0:00:03]} 39. Re2 {[%clk 0:01:06]}  Ka7 {[%clk 0:00:03]} 40. Qf3 {[%clk 0:01:05]}  Qxa2 {[%clk 0:00:03]} 41. Nc3 {[%clk 0:01:01]}  Rxe2+ {[%clk 0:00:03]} 42. Qxe2 {[%clk 0:01:02]}  Qb3 {[%clk 0:00:02]} 43. Nb5+ {[%clk 0:01:01]}  Kb7 {[%clk 0:00:01]} 44. Nxd6+ {[%clk 0:00:58]}  Kc6 {[%clk 0:00:02]} 45. Nc4 {[%clk 0:00:58]}  Kd5 {[%clk 0:00:02]} 46. Na3 {[%clk 0:00:49]}  Kxd4 {[%clk 0:00:02]} 47. Nb5+ {[%clk 0:00:48]}  Kc5 {[%clk 0:00:02]} 48. Nc3 {[%clk 0:00:47]}  b5 {[%clk 0:00:03]} 49. Qe5+ {[%clk 0:00:46]}  Kc4 {[%clk 0:00:03]} 50. Qd5+ {[%clk 0:00:43]}  Kb4 {[%clk 0:00:03]} 51. Qxb5# {[%clk 0:00:44]} 1-0


[Site "https://www.chess.com"]

[Event "Titled Tuesday Blitz January 17 Early 2023"]
[White "Moroni, Luca Jr"]
[Black "Piesik, Piotr"]
[WhiteFideId "865834"]
[BlackFideId "1136194"]
[WhiteElo "2535"]
[BlackElo "2426"]
[Result "1-0"]
[Round "07"]
[TimeControl "180+2"]
[Date "2023.01.17"]
[WhiteClock "0:01:47"]
[BlackClock "0:01:25"]

1. d4 {[%clk 0:03:00]}  c5 {[%clk 0:02:58]} 2. d5 {[%clk 0:02:58]}  e5 {[%clk 0:02:58]} 3. Nc3 {[%clk 0:02:57]}  d6 {[%clk 0:02:58]} 4. e4 {[%clk 0:02:57]}  Be7 {[%clk 0:02:58]} 5. Nf3 {[%clk 0:02:51]}  a6 {[%clk 0:02:58]} 6. a4 {[%clk 0:02:51]}  Bg4 {[%clk 0:02:58]} 7. h3 {[%clk 0:02:51]}  Bxf3 {[%clk 0:02:58]} 8. Qxf3 {[%clk 0:02:51]}  Bg5 {[%clk 0:02:58]} 9. Bxg5 {[%clk 0:02:41]}  Qxg5 {[%clk 0:02:59]} 10. h4 {[%clk 0:02:42]}  Qf6 {[%clk 0:02:59]} 11. Qe3 {[%clk 0:02:38]}  Ne7 {[%clk 0:02:49]} 12. g3 {[%clk 0:02:36]}  h6 {[%clk 0:02:43]} 13. Bh3 {[%clk 0:02:36]}  Nd7 {[%clk 0:02:39]} 14. a5 {[%clk 0:02:32]}  g5 {[%clk 0:02:31]} 15. hxg5 {[%clk 0:02:31]}  hxg5 {[%clk 0:02:29]} 16. O-O-O {[%clk 0:02:27]}  O-O-O {[%clk 0:02:25]} 17. Na4 {[%clk 0:02:24]}  Kb8 {[%clk 0:02:20]} 18. Bxd7 {[%clk 0:02:22]}  Rxd7 {[%clk 0:02:19]} 19. Rxh8+ {[%clk 0:02:21]}  Qxh8 {[%clk 0:02:19]} 20. Qxg5 {[%clk 0:02:21]}  Nc8 {[%clk 0:02:16]} 21. Qf5 {[%clk 0:02:20]}  Re7 {[%clk 0:02:10]} 22. Qf3 {[%clk 0:02:18]}  Qh6+ {[%clk 0:02:06]} 23. Kb1 {[%clk 0:02:18]}  Qg6 {[%clk 0:01:58]} 24. b3 {[%clk 0:02:13]}  Re8 {[%clk 0:01:56]} 25. Rh1 {[%clk 0:02:10]}  Na7 {[%clk 0:01:52]} 26. Nb6 {[%clk 0:02:10]}  Nb5 {[%clk 0:01:52]} 27. Kb2 {[%clk 0:02:07]}  Nd4 {[%clk 0:01:45]} 28. Qd3 {[%clk 0:02:07]}  Qg7 {[%clk 0:01:38]} 29. c3 {[%clk 0:02:04]}  Nb5 {[%clk 0:01:37]} 30. Qf3 {[%clk 0:02:03]}  Qg6 {[%clk 0:01:32]} 31. Rh4 {[%clk 0:01:59]}  Rg8 {[%clk 0:01:30]} 32. Qh5 {[%clk 0:01:48]}  Qf6 {[%clk 0:01:25]} 33. Nd7+ {[%clk 0:01:47]} 1-0


[Site "https://www.chess.com"]